fUSD/lending_fUSD_20260315
["ID","MTS","AMOUNT","RATE_DAILY","PERIOD"]
[408429137,1773599505072,-194.58555382,0.00047598,120]
[408429138,1773599505082,-160.03035612,0.00047598,30]
[408429139,1773599505091,-233.46778925,0.00047598,120]
[408429140,1773599505100,-176.52658999,0.00047598,120]
[408429141,1773599505110,-4128.44439924,0.00047598,90]
[408429142,1773599505119,-700038.87049742,0.00047598,30]
[408429143,1773599505129,-207466.94603158,0.00047598,30]
[408429144,1773599505138,-183.53,0.00047598,30]
[408429145,1773599505148,-241757.59764337,0.00047598,30]
[408429146,1773599505157,-100811.50510093,0.00047598,30]
[408429147,1773599505168,-464.08136084,0.00047598,120]
[408429148,1773599505179,-281.08925132,0.00047598,120]
[408429149,1773599505191,-214.0,0.00047598,120]
[408429150,1773599505202,-353.77251956,0.00047598,120]
[408429151,1773599505212,-210.15454,0.00047598,45]
[408429152,1773599505223,-210.15454,0.00047598,45]
[408429153,1773599505233,-203.77246,0.00047598,60]
[408429154,1773599505242,-152.95122,0.00047598,60]
[408429155,1773599505253,-310.41243519,0.00047598,120]
[408429156,1773599505262,-598.72189791,0.00047598,120]
[408429157,1773599505271,-446064.78381181,0.00047598,60]
[408429158,1773599505281,-1420.28,0.00047598,30]
[408429159,1773599505290,-167634.22,0.00047598,30]
[408429160,1773599505299,-17840.12,0.00047598,30]
[408429161,1773599505309,-1028066.3292306,0.00047598,30]
[408429162,1773599505319,-1000000.00388025,0.00047598,60]
[408429163,1773599505328,-600000.0,0.00047598,55]
[408429164,1773599505338,-103276.47316299,0.00047598,30]
[408429165,1773599505347,-6444.91351086,0.00047598,120]
[408429166,1773599505357,-2011.74944656,0.00047598,2]
[408429167,1773599505367,-46950.32,0.00047598,120]
[408429168,1773599505376,-19790.70932767,0.00047598,30]
[408429169,1773599505385,-15006.68840011,0.00047598,2]
[408429170,1773599505395,-21385.04072101,0.00047598,30]
[408429171,1773599505404,-417.67,0.00047598,120]
[408429172,1773599505413,-152.19807045,0.00047598,30]
[408429173,1773599505422,-23162.64458312,0.00047598,45]
[408429174,1773599505431,-14000.0,0.00047598,120]
[408429175,1773599505440,-479.45770648,0.00047598,120]
[408429176,1773599505450,-212.78889333,0.00047598,120]
[408429177,1773599505459,-453259.57,0.00047598,30]
[408429178,1773599505469,-34000.0,0.00047598,30]
[408429179,1773599505480,-2188.6304,0.00047598,30]
[408429180,1773599505491,-1926.32112122,0.00047598,60]
[408429181,1773599505502,-350.0,0.00047598,30]
[408429182,1773599505514,-11776.7403549,0.00047598,30]
[408429183,1773599505525,-27082.0,0.00047598,14]
[408429184,1773599505535,-314.72,0.00047598,120]
[408429185,1773599505545,-314.72,0.00047598,120]
[408429186,1773599505556,-314.72,0.00047598,120]
[408429187,1773599505565,-314.72,0.00047598,120]
[408429188,1773599505575,-314.72,0.00047598,120]
[408429189,1773599505585,-314.72,0.00047598,120]
[408429190,1773599505595,-314.72,0.00047598,120]
[408429191,1773599505604,-314.72,0.00047598,120]
[408429192,1773599505614,-314.72,0.00047598,120]
[408429193,1773599505623,-205.90610311,0.00047598,120]
[408429194,1773599505633,-1000.06391188,0.00047598,30]
[408429195,1773599505643,-15067.907167,0.00047598,120]
[408429196,1773599505653,-3808.0,0.00047598,120]
[408429197,1773599505664,-67000.0,0.00047598,120]
[408429198,1773599505676,-46942.3705497,0.00047598,120]
[408429199,1773599505687,-5000.0,0.00047598,30]
[408429200,1773599505697,-2094.75653422,0.00047598,120]
[408429201,1773599505706,-96000.0,0.00047598,120]
[408429202,1773599505716,-18200.76492861,0.00047598,120]
[408429203,1773599505725,-2074.6437797,0.00047598,120]
[408429204,1773599505734,-27693.94128383,0.00047598,120]
[408429205,1773599505743,-90985.4542219,0.00047598,15]
[408429206,1773599505754,-237.97776204,0.00047598,120]
[408429207,1773599505766,-6575.41,0.00047598,120]
[408429208,1773599505775,-6575.41,0.00047598,120]
[408429209,1773599505784,-6575.41,0.00047598,120]
[408429210,1773599505796,-6575.41,0.00047598,120]
[408429211,1773599505807,-6575.41,0.00047598,120]
[408429212,1773599505818,-6575.41,0.00047598,120]
[408429213,1773599505828,-6575.41,0.00047598,120]
[408429214,1773599505837,-6575.41,0.00047598,120]
[408429215,1773599505846,-6575.41,0.00047598,120]
[408429216,1773599505855,-6575.41,0.00047598,120]
[408429217,1773599505864,-6575.41,0.00047598,120]
[408429218,1773599505873,-6575.41,0.00047598,120]
[408429219,1773599505884,-6575.41,0.00047598,120]
[408429220,1773599505893,-6575.41,0.00047598,120]
[408429221,1773599505902,-6575.41,0.00047598,120]
[408429222,1773599505911,-6575.41,0.00047598,120]
[408429223,1773599505922,-6575.41,0.00047598,120]
[408429224,1773599505933,-6575.41,0.00047598,120]
[408429225,1773599505943,-6575.41,0.00047598,120]
[408429226,1773599505952,-6575.41,0.00047598,120]
[408429227,1773599505963,-6575.41,0.00047598,120]
[408429228,1773599505973,-6575.41,0.00047598,120]
[408429229,1773599505982,-6575.41,0.00047598,120]
[408429230,1773599505993,-6575.49670551,0.00047598,120]
[408429231,1773599506007,-50000.0,0.00047598,120]
[408429232,1773599506016,-2000.0,0.00047598,31]
[408429233,1773599506026,-45014.72478805,0.00047598,22]
[408429234,1773599506036,-5220.16332387,0.00047598,15]
[408429235,1773599506045,-10790.60542073,0.00047598,120]
[408429236,1773599506055,-26350.69101205,0.00047598,120]
[408429237,1773599506065,-5000.0,0.00047598,37]
[408429238,1773599506074,-181.61,0.00047598,30]
[408429239,1773599506084,-60000.0,0.00047598,120]
[408429240,1773599506094,-5003.64890247,0.00047598,2]
[408429241,1773599506106,-30170.12030098,0.00047598,120]
[408429242,1773599506115,-3000.0,0.00047598,2]
[408429243,1773599506125,-507.59230006,0.00047598,2]
[408429244,1773599506135,-200.0,0.00047598,120]
[408429245,1773599506144,-185.70966611,0.00047598,120]
[408429246,1773599506153,-20377.15505651,0.00047598,120]
[408429247,1773599506162,-200.0,0.00047598,30]
[408429248,1773599506171,-300.0,0.00047598,30]
[408429249,1773599506180,-200.0,0.00047598,10]
[408429250,1773599506189,-300.0,0.00047598,10]
[408429251,1773599506200,-200.0,0.00047598,120]
[408429252,1773599506211,-259.37104,0.00047598,120]
[408429253,1773599506222,-178.77563255,0.00047598,30]
[408429254,1773599506233,-609.37,0.000476,120]
[408429255,1773599506243,-609.28,0.000476,120]
[408429256,1773599506252,-609.28,0.000476,120]
[408429257,1773599506262,-609.28,0.000476,120]
[408429258,1773599506273,-609.28,0.000476,120]
[408429259,1773599506284,-609.28,0.000476,120]
[408429260,1773599506294,-609.28,0.000476,120]
[408429261,1773599506304,-609.28,0.000476,120]
[408429262,1773599506314,-609.28,0.000476,120]
[408429263,1773599506324,-609.28,0.000476,120]
[408429264,1773599506337,-609.28,0.000476,120]
[408429265,1773599506346,-609.28,0.000476,120]
[408429266,1773599506356,-609.28,0.000476,120]
[408429267,1773599506366,-609.28,0.000476,120]
[408429268,1773599506375,-609.28,0.000476,120]
[408429269,1773599506384,-609.28,0.000476,120]
[408429270,1773599506392,-609.28,0.000476,120]
[408429271,1773599506401,-609.28,0.000476,120]
[408429272,1773599506410,-609.28,0.000476,120]
[408429273,1773599506419,-609.28,0.000476,120]
[408429274,1773599506428,-472.6115304,0.000476,120]
[408429275,1773599506437,-800.7002,0.000476,2]
[408429276,1773599506447,-347.5533,0.000476,90]
[408429277,1773599506457,-151.61244498,0.000476,120]
[408429278,1773599506468,-191.23731663,0.000476,90]
[408429279,1773599506479,-447.41,0.000476,45]
[408429280,1773599506489,-447.41,0.000476,55]
[408429281,1773599506499,-156.68912876,0.0004761,7]
[408429282,1773599506510,-351.66521112,0.0004761,30]
[408429283,1773599506520,-240.8427614,0.00047612,4]
[408429284,1773599506530,-1000.0,0.00047624,120]
[408429285,1773599506540,-500.0,0.00047636,2]
[408429286,1773599506550,-10000.0,0.00047642,120]
[408429287,1773599506560,-10000.0,0.00047642,120]
[408429288,1773599506571,-10000.0,0.00047642,120]
[408429289,1773599506581,-10000.0,0.00047642,120]
[408429290,1773599506591,-10000.0,0.00047642,120]
[408429291,1773599506720,-10000.0,0.00047642,120]
[408429292,1773599506730,-10000.0,0.00047642,120]
[408429293,1773599506739,-10000.0,0.00047642,120]
[408429294,1773599506748,-10000.0,0.00047642,120]
[408429295,1773599506758,-10000.0,0.00047642,120]
[408429296,1773599506769,-8341.3,0.00047642,120]
[408429297,1773599506780,-8341.3,0.00047642,120]
[408429298,1773599506791,-8341.3,0.00047642,120]
[408429299,1773599506801,-8341.3,0.00047642,120]
[408429300,1773599506812,-8341.3,0.00047642,120]
[408429301,1773599506821,-8341.35,0.00047642,120]
[408429302,1773599506830,-7740.0729038,0.00047642,30]
[408429303,1773599506839,-7740.0729038,0.00047642,30]
[408429304,1773599506850,-1600.0,0.00047671,60]
[408429305,1773599506859,-151.5,0.00047684,2]
[408429306,1773599506868,-1078.0,0.000477,60]
[408429307,1773599506879,-163.8,0.00047711,30]
[408429308,1773599506889,-239.03,0.00047711,30]
[408429309,1773599506898,-625.86539035,0.00047736,2]
[408429310,1773599506909,-151.5,0.00047784,2]
[408429311,1773599506920,-64655.02568545,0.000478,30]
[408429312,1773599506933,-50000.0,0.000478,45]
[408429313,1773599506942,-3370.78527889,0.000478,60]
[408429314,1773599506953,-1187.0,0.000478,17]
[408429315,1773599506963,-339.35301119,0.000479,120]
[408429316,1773599506972,-3000.0,0.00047945,120]
[408429317,1773599506982,-1300.0,0.00047945,60]
[408429318,1773599506992,-158.87906176,0.00047945,120]
[408429319,1773599507001,-3000.0,0.00047972,120]
[408429320,1773599507011,-5277.10876,0.00047973,30]
[408429321,1773599507020,-1714.0,0.00048,120]
[408429322,1773599507029,-883.6024,0.00048,2]
[408429323,1773599507038,-160.72737648,0.00048,2]
[408429324,1773599507047,-1000.0,0.00048,120]
[408429325,1773599507057,-3000.0,0.00048,120]
[408429326,1773599507066,-33589.33918629,0.00048,60]
[408429327,1773599507075,-30000.0,0.00048,30]
[408429328,1773599507084,-4284.0,0.00048,120]
[408429329,1773599507093,-150.0,0.00048,85]
[408429330,1773599507102,-479.45770648,0.00048,120]
[408429331,1773599507111,-212.78889333,0.00048,120]
[408429332,1773599507120,-154.0,0.00048,120]
[408429333,1773599507130,-156.0,0.00048,120]
[408429334,1773599507139,-153.0,0.00048,120]
[408429335,1773599507148,-154.0,0.00048,120]
[408429336,1773599507157,-402.69,0.00048,14]
[408429337,1773599507166,-1047.49052084,0.00048027,120]
[408429338,1773599507175,-151.5,0.00048103,2]
[408429339,1773599507184,-151.5,0.00048149,2]
[408429340,1773599507193,-161.0,0.000482,120]
[408429341,1773599507202,-165.0,0.000482,120]
[408429342,1773599507211,-2000.0,0.00048234,60]
[408429343,1773599507220,-975.0882,0.000483,2]
[408429344,1773599507230,-300000.0,0.000483,120]
[408429345,1773599507239,-3681.25604669,0.00048302,120]
[408429346,1773599507248,-151.5,0.00048305,2]
[408429347,1773599507258,-156.40101159,0.0004835,2]
[408429348,1773599507267,-6548.38,0.00048379,30]
[408429349,1773599507276,-500.0,0.00048493,60]
[408429350,1773599507286,-3090.7438937,0.000485,5]
[408429351,1773599507295,-152.25965784,0.000485,120]
[408429352,1773599507304,-500.0,0.00048598,2]
[408429353,1773599507313,-500.0,0.00048598,2]
[408429354,1773599507322,-500.0,0.00048598,2]
[408429355,1773599507331,-500.0,0.00048598,2]
[408429356,1773599507340,-500.0,0.00048598,2]
[408429357,1773599507350,-500.0,0.00048598,2]
[408429358,1773599507359,-500.0,0.00048598,2]
[408429359,1773599507368,-500.0,0.00048598,2]
[408429360,1773599507378,-500.0,0.00048598,2]
[408429361,1773599507388,-500.0,0.00048598,2]
[408429362,1773599507397,-500.0,0.00048598,2]
[408429363,1773599507407,-500.0,0.00048598,2]
[408429364,1773599507416,-500.0,0.00048598,2]
[408429365,1773599507425,-500.0,0.00048598,2]
[408429366,1773599507434,-500.0,0.00048598,2]
[408429367,1773599507444,-500.0,0.00048598,2]
[408429368,1773599507454,-500.0,0.00048598,2]
[408429369,1773599507464,-500.0,0.00048598,2]
[408429370,1773599507473,-500.0,0.00048598,2]
[408429371,1773599507482,-500.0,0.00048598,2]
[408429372,1773599507492,-500.0,0.00048598,2]
[408429373,1773599507501,-500.0,0.00048598,2]
[408429374,1773599507510,-500.0,0.00048598,2]
[408429375,1773599507520,-500.0,0.00048598,2]
[408429376,1773599507530,-500.0,0.00048598,2]
[408429377,1773599507539,-500.0,0.00048598,2]
[408429378,1773599507548,-500.0,0.00048598,2]
[408429379,1773599507558,-500.0,0.00048598,2]
[408429380,1773599507568,-500.0,0.00048598,2]
[408429381,1773599507578,-500.0,0.00048598,2]
[408429382,1773599507587,-500.0,0.00048598,2]
[408429383,1773599507597,-500.0,0.00048598,2]
[408429384,1773599507607,-500.0,0.00048598,2]
[408429385,1773599507617,-500.0,0.00048598,2]
[408429386,1773599507627,-500.0,0.00048598,2]
[408429387,1773599507637,-500.0,0.00048598,2]
[408429388,1773599507646,-500.0,0.00048598,2]
[408429389,1773599507656,-500.0,0.00048598,2]
[408429390,1773599507666,-500.0,0.00048598,2]
[408429391,1773599507675,-500.0,0.00048598,2]
[408429392,1773599507684,-500.0,0.00048598,2]
[408429393,1773599507694,-500.0,0.00048598,2]
[408429394,1773599507703,-500.0,0.00048598,2]
[408429395,1773599507712,-500.0,0.00048598,2]
[408429396,1773599507721,-500.0,0.00048598,2]
[408429397,1773599507730,-500.0,0.00048598,2]
[408429398,1773599507739,-500.0,0.00048598,2]
[408429399,1773599507748,-500.0,0.00048598,2]
[408429400,1773599507757,-500.0,0.00048598,2]
[408429401,1773599507766,-500.0,0.00048598,2]
[408429402,1773599507775,-500.0,0.00048598,2]
[408429403,1773599507784,-500.0,0.00048598,2]
[408429404,1773599507794,-536.0,0.00048598,2]
[408429405,1773599507803,-500.0,0.00048598,2]
[408429406,1773599507812,-500.0,0.00048598,2]
[408429407,1773599507821,-500.0,0.00048598,2]
[408429408,1773599507830,-500.0,0.00048598,2]
[408429409,1773599507839,-500.0,0.00048598,2]
[408429410,1773599507847,-500.0,0.00048598,2]
[408429411,1773599507856,-500.0,0.00048598,2]
[408429412,1773599507865,-500.0,0.00048598,2]
[408429413,1773599507874,-500.0,0.00048598,2]
[408429414,1773599507883,-500.0,0.00048598,2]
[408429415,1773599507892,-500.0,0.00048598,2]
[408429416,1773599507901,-500.0,0.00048598,2]
[408429417,1773599507910,-500.0,0.00048598,2]
[408429418,1773599507921,-500.0,0.00048598,2]
[408429419,1773599507933,-500.0,0.00048598,2]
[408429420,1773599507942,-500.0,0.00048598,2]
[408429421,1773599507951,-500.0,0.00048598,2]
[408429422,1773599507961,-500.0,0.00048598,2]
[408429423,1773599507970,-500.0,0.00048598,2]
[408429424,1773599507979,-1887.0,0.00048598,120]
[408429425,1773599507988,-1076.0461,0.000486,2]
[408429426,1773599507997,-22287.6652,0.000486,90]
[408429427,1773599508007,-151.5,0.00048602,2]
[408429428,1773599508016,-870.25434478,0.0004869,120]
[408429429,1773599508025,-3274.5,0.0004869,120]
[408429430,1773599508034,-1600.0,0.00048767,60]
[408429431,1773599508043,-74639.7869284,0.0004878,120]
[408429432,1773599508052,-50000.0,0.000488,60]
[408429433,1773599508062,-50000.0,0.000488,90]
[408429434,1773599508071,-97304.03121913,0.000488,120]
[408429435,1773599508080,-151.5,0.00048847,2]
[408429436,1773599508090,-1187.4569,0.000489,2]
[408429437,1773599508099,-10050.74195115,0.000489,60]
[408429438,1773599508108,-65007.7,0.000489,120]
[408429439,1773599508117,-770.10020396,0.000489,120]
[408429440,1773599508127,-41000.0,0.000489,120]
[408429441,1773599508136,-291.91644175,0.000489,120]
[408429442,1773599508145,-291.91644175,0.000489,120]
[408429443,1773599508153,-291.91644175,0.000489,120]
[408429444,1773599508164,-291.91644175,0.000489,120]
[408429445,1773599508173,-291.91644175,0.000489,120]
[408429446,1773599508182,-291.91644175,0.000489,120]
[408429447,1773599508192,-291.91644175,0.000489,120]
[408429448,1773599508201,-291.91644175,0.000489,120]
[408429449,1773599508210,-291.91644175,0.000489,120]
[408429450,1773599508220,-3274.5,0.00048903,120]
[408429451,1773599508229,-151.5,0.00048988,2]
[408429452,1773599508238,-500000.0,0.0004899,90]
[408429453,1773599508248,-223.0,0.0004899,30]
[408429454,1773599508257,-285.42,0.00049,120]
[408429455,1773599508267,-248513.34004975,0.00049,120]
[408429456,1773599508276,-2055.30805073,0.00049,120]
[408429457,1773599508285,-7342.5546752,0.00049,10]
[408429458,1773599508295,-1000.0,0.00049,120]
[408429459,1773599508304,-1000.0,0.00049,120]
[408429460,1773599508313,-3057.5214633,0.00049,120]
[408429461,1773599508323,-451.02886932,0.00049,120]
[408429462,1773599508332,-241.49560067,0.00049,120]
[408429463,1773599508341,-191.83745294,0.00049,30]
[408429464,1773599508350,-240.61419893,0.00049,90]
[408429465,1773599508359,-150.0,0.00049,88]
[408429466,1773599508368,-24700.0,0.00049,120]
[408429467,1773599508378,-297.25,0.00049,120]
[408429468,1773599508387,-154.0,0.00049,120]
[408429469,1773599508396,-156.0,0.00049,120]
[408429470,1773599508405,-263.0,0.00049,30]
[408429471,1773599508415,-153.0,0.00049,120]
[408429472,1773599508424,-154.0,0.00049,120]
[408429473,1773599508434,-320.56368748,0.00049,60]
[408429474,1773599508445,-357.5,0.00049,30]
[408429475,1773599508466,-1310.59,0.00049,30]
[408429476,1773599508479,-1300.0,0.00049041,60]
[408429477,1773599508488,-1078.0,0.0004905,60]
[408429478,1773599508496,-5000.0,0.000491,90]
[408429479,1773599508505,-5000.0,0.000491,90]
[408429480,1773599508514,-3274.5,0.00049117,120]
[408429481,1773599508524,-350269.25150369,0.00049154,120]
[408429482,1773599508533,-1650.00306942,0.0004919,120]
[408429483,1773599508542,-152.0,0.00049199,7]
[408429484,1773599508551,-154.62431146,0.00049199,5]
[408429485,1773599508559,-1310.4029,0.000492,2]
[408429486,1773599508569,-50000.0,0.00049202,120]
[408429487,1773599508577,-365.54,0.0004922,120]
[408429488,1773599508586,-79683.62033991,0.0004928,50]
[408429489,1773599508594,-10000.0,0.00049315,120]
[408429490,1773599508603,-10000.0,0.00049315,120]
[408429491,1773599508612,-10000.0,0.00049315,120]
[408429492,1773599508621,-2099.52495538,0.00049315,120]
[408429493,1773599508630,-500.0,0.00049315,120]
[408429494,1773599508638,-500.0,0.00049315,120]
[408429495,1773599508647,-500.0,0.00049315,120]
[408429496,1773599508655,-500.0,0.00049315,120]
[408429497,1773599508664,-500.0,0.00049315,120]
[408429498,1773599508783,-500.0,0.00049315,120]
[408429499,1773599508793,-500.0,0.00049315,120]
[408429500,1773599508803,-500.0,0.00049315,120]
[408429501,1773599508812,-500.0,0.00049315,120]
[408429502,1773599508821,-500.0,0.00049315,120]
[408429503,1773599508830,-276.67125694,0.00049315,120]
[408429504,1773599508840,-150.0,0.00049315,7]
[408429505,1773599508850,-150.0,0.00049315,7]
[408429506,1773599508859,-150.0,0.00049315,7]
[408429507,1773599508869,-193.49445749,0.00049315,7]
[408429508,1773599508878,-119894.13147475,0.00049315,120]
[408429509,1773599508888,-296.09,0.00049323,30]
[408429510,1773599508897,-3274.5,0.0004933,120]
[408429511,1773599508907,-602.91965435,0.00049368,120]
[408429512,1773599508917,-206.8268395,0.0004938,120]
[408429513,1773599508929,-7739.62595942,0.000494,120]
[408429514,1773599508938,-284.9228,0.000494,120]
[408429515,1773599508948,-1209.67266092,0.00049419,120]
[408429516,1773599508957,-500.0,0.00049479,30]
[408429517,1773599508967,-500.0,0.00049479,30]
[408429518,1773599508976,-500.0,0.00049479,30]
[408429519,1773599508986,-500.0,0.00049479,30]
[408429520,1773599508996,-397.31899593,0.00049495,30]
[408429521,1773599509006,-7728.31120405,0.00049499,2]
[408429522,1773599509015,-1446.0784,0.000495,2]
[408429523,1773599509024,-303.0,0.000495,120]
[408429524,1773599509034,-1255.52568502,0.000495,120]
[408429525,1773599509043,-928.17,0.000495,120]
[408429526,1773599509052,-1409.88988397,0.000495,120]
[408429527,1773599509061,-3274.5,0.00049544,120]
[408429528,1773599509071,-500.0,0.00049589,60]
[408429529,1773599509080,-250000.0,0.000496,30]
[408429530,1773599509089,-100000.0,0.000496,120]
[408429531,1773599509098,-9349.32460369,0.000496,30]
[408429532,1773599509108,-3053.96,0.00049613,30]
[408429533,1773599509117,-268.76198653,0.00049626,120]
[408429534,1773599509127,-3274.19,0.00049661,30]
[408429535,1773599509136,-67456.51158811,0.000497,120]
[408429536,1773599509145,-5036.0,0.000497,120]
[408429537,1773599509154,-15000.0,0.0004973,120]
[408429538,1773599509163,-500.0,0.00049751,30]
[408429539,1773599509173,-2000.0,0.00049751,120]
[408429540,1773599509182,-3274.5,0.00049757,120]
[408429541,1773599509191,-20134.0512464,0.000498,7]
[408429542,1773599509200,-1488.53630177,0.000498,120]
[408429543,1773599509210,-6424.75193544,0.00049856,120]
[408429544,1773599509218,-21500.0,0.00049859,120]
[408429545,1773599509228,-500.0,0.00049863,2]
[408429546,1773599509237,-500.0,0.00049863,2]
[408429547,1773599509246,-500.0,0.00049863,2]
[408429548,1773599509255,-500.0,0.00049863,2]
[408429549,1773599509264,-500.0,0.00049863,2]
[408429550,1773599509273,-503.33805399,0.00049863,2]
[408429551,1773599509283,-207.33643618,0.00049863,120]
[408429552,1773599509293,-500.0,0.00049863,120]
[408429553,1773599509303,-500.0,0.00049863,120]
[408429554,1773599509313,-500.0,0.00049863,120]
[408429555,1773599509322,-500.0,0.00049863,120]
[408429556,1773599509331,-500.0,0.00049863,120]
[408429557,1773599509341,-500.0,0.00049863,120]
[408429558,1773599509350,-500.0,0.00049863,120]
[408429559,1773599509359,-500.0,0.00049863,120]
[408429560,1773599509368,-495.59694599,0.00049863,120]
[408429561,1773599509378,-1600.0,0.00049863,60]
[408429562,1773599509387,-50000.0,0.000499,56]
[408429563,1773599509399,-50000.0,0.000499,57]
[408429564,1773599509408,-50000.0,0.000499,58]
[408429565,1773599509419,-5000000.0,0.000499,120]
[408429566,1773599509429,-5000000.0,0.000499,120]
[408429567,1773599509439,-3000000.0,0.000499,120]
[408429568,1773599509449,-150.12406903,0.000499,3]
[408429569,1773599509458,-934783.94183188,0.000499,120]
[408429570,1773599509467,-380.53554513,0.000499,7]
[408429571,1773599509479,-190.0,0.000499,120]
[408429572,1773599509489,-50000.0,0.000499,120]
[408429573,1773599509499,-158.63552015,0.000499,120]
[408429574,1773599509508,-311286.65330976,0.000499,120]
[408429575,1773599509519,-4550.76,0.000499,120]
[408429576,1773599509530,-14130.81005888,0.000499,120]
[408429577,1773599509539,-1000.0,0.000499,120]
[408429578,1773599509550,-912.11675308,0.000499,120]
[408429579,1773599509560,-351.66521112,0.000499,30]
[408429580,1773599509569,-7740.0729038,0.000499,30]
[408429581,1773599509579,-75000.0,0.0004995,120]
[408429582,1773599509588,-3274.5,0.00049971,120]
[408429583,1773599509597,-500000.0,0.0004999,90]
[408429584,1773599509607,-1064.93779105,0.00049994,45]
[408429585,1773599509616,-500.0,0.00049999,30]
[408429586,1773599509626,-500.0,0.00049999,30]
[408429587,1773599509635,-500.0,0.00049999,30]
[408429588,1773599509644,-500.0,0.00049999,30]
[408429589,1773599509654,-500.0,0.00049999,30]
[408429590,1773599509663,-500.0,0.00049999,30]
[408429591,1773599509672,-500.0,0.00049999,30]
[408429592,1773599509681,-534.96108932,0.00049999,30]
[408429593,1773599509691,-7825.44526837,0.00049999,120]
[408429594,1773599509700,-450.55266184,0.00049999,120]
[408429595,1773599509709,-521.25341854,0.00049999,120]
[408429596,1773599509718,-500.0,0.00049999,120]
[408429597,1773599509727,-500.0,0.00049999,120]
[408429598,1773599509736,-500.0,0.00049999,120]
[408429599,1773599509746,-500.0,0.00049999,120]
[408429600,1773599509756,-381.95424007,0.00049999,120]
[408429601,1773599509765,-500.0,0.00049999,120]
[408429602,1773599509774,-500.0,0.00049999,120]
[408429603,1773599509783,-500.0,0.00049999,120]
[408429604,1773599509793,-343.50641693,0.00049999,15]
[408429605,1773599509802,-244.38974626,0.00049999,120]
[408429606,1773599509811,-500.0,0.00049999,120]
[408429607,1773599509820,-346.53098893,0.00049999,120]
[408429608,1773599509831,-358.55377425,0.00049999,120]
[408429609,1773599509840,-500.0,0.00049999,120]
[408429610,1773599509848,-500.0,0.00049999,120]
[408429611,1773599509858,-968.89810925,0.00049999,120]
[408429612,1773599509867,-500.0,0.00049999,120]
[408429613,1773599509876,-968.89810925,0.00049999,120]
[408429614,1773599509885,-500.0,0.00049999,120]
[408429615,1773599509894,-968.89810925,0.00049999,120]
[408429616,1773599509903,-968.89810925,0.00049999,120]
[408429617,1773599509915,-968.89810925,0.00049999,120]
[408429618,1773599509928,-968.89810925,0.00049999,120]
[408429619,1773599509937,-968.89810925,0.00049999,120]
[408429620,1773599509946,-968.89810925,0.00049999,120]
[408429621,1773599509955,-968.89810925,0.00049999,120]
[408429622,1773599509964,-968.89810925,0.00049999,120]
[408429623,1773599509976,-968.89810925,0.00049999,120]
[408429624,1773599509987,-968.89810925,0.00049999,120]
[408429625,1773599509996,-968.89810925,0.00049999,120]
[408429626,1773599510006,-968.89810925,0.00049999,120]
[408429627,1773599510015,-968.89810925,0.00049999,120]
[408429628,1773599510024,-968.89810925,0.00049999,120]
[408429629,1773599510033,-968.89810925,0.00049999,120]
[408429630,1773599510043,-968.89810925,0.00049999,120]
[408429631,1773599510052,-968.89810925,0.00049999,120]
[408429632,1773599510061,-968.89810925,0.00049999,120]
[408429633,1773599510070,-968.89810925,0.00049999,120]
[408429634,1773599510080,-500.0,0.00049999,120]
[408429635,1773599510090,-968.89810925,0.00049999,120]
[408429636,1773599510101,-968.89810925,0.00049999,120]